bitfinex-derivatives/quotes_ETHF0:USTF0_20250616
["timestamp","ask_amount","ask_price","bid_price","bid_amount"]
[1750089199921,5.05981466,2645.1,2645.0,0.76158462]
[1750089200221,28.14681466,2645.1,2645.0,0.76158462]
[1750089200410,28.90270466,2645.1,2645.0,0.76158462]
[1750089201014,28.90270466,2645.1,2645.0,0.00567462]
[1750089201213,30.24570466,2645.1,2645.0,0.76158462]
[1750089204014,30.24570466,2645.1,2645.0,0.00567462]
[1750089204405,35.24570466,2645.1,2645.0,0.00567462]
[1750089205310,5.81570466,2645.1,2645.0,0.76159462]
[1750089205515,34.88370466,2645.1,2645.0,0.76159462]
[1750089205818,34.88370466,2645.1,2645.0,0.00567462]
[1750089206116,36.15980466,2645.1,2645.0,0.00567462]
[1750089208015,0.75597,2644.8,2644.7,0.75598]
[1750089208219,28.24938466,2644.8,2644.7,0.75598]
[1750089208724,27.49341466,2644.8,2644.7,0.75598]
[1750089209022,11.02681466,2645.1,2645.0,0.75592]
[1750089209211,34.21334466,2645.1,2645.0,0.75592]
[1750089210022,0.75592,2645.0,2644.9,0.6179]
[1750089210222,0.75603,2644.7,2644.6,0.75599]
[1750089210524,28.25044466,2644.7,2644.6,0.75599]
[1750089211218,27.49441466,2644.7,2644.6,0.75599]
[1750089212113,27.49441466,2644.7,2644.6,2.07709]
[1750089212423,0.75603,2644.6,2644.5,0.6382]
[1750089212623,0.75611,2644.4,2644.3,0.75608]
[1750089212816,28.26952466,2644.4,2644.3,1.39428]
[1750089213020,28.26952466,2644.4,2644.3,0.6382]
[1750089213317,28.26952466,2644.4,2644.3,1.39432]
[1750089213318,27.51341466,2644.4,2644.3,1.39432]
[1750089213718,28.26950466,2644.4,2644.3,1.39432]
[1750089214321,27.51341466,2644.4,2644.3,1.39432]
[1750089214522,28.26950466,2644.4,2644.3,1.39432]
[1750089215624,28.33687872,2644.4,2644.3,1.39432]
[1750089216125,29.25207102,2644.4,2644.3,1.39432]
[1750089216417,0.75614,2644.3,2644.1,3.2078]
[1750089216622,27.50741466,2644.2,2644.1,4.63317]
[1750089216823,28.25755466,2644.2,2644.1,4.63317]
[1750089217218,27.50141466,2644.2,2644.1,4.63317]
[1750089217419,23.116,2644.2,2644.1,4.63317]
[1750089219215,0.06737406,2644.4,2644.3,0.75611]
[1750089219524,23.17637406,2644.4,2644.3,0.75611]
[1750089220322,0.75612,2644.3,2644.2,0.75611]
[1750089220521,6.05652492,2644.3,2644.2,0.75611]
[1750089221220,6.72592492,2644.3,2644.2,0.75611]
[1750089221422,0.75618,2644.2,2644.1,0.75615]
[1750089221624,29.16358492,2644.2,2644.1,0.75615]
[1750089221823,34.40440492,2644.2,2644.1,0.75615]
[1750089222028,5.985,2644.2,2644.1,0.75615]
[1750089222232,0.06737406,2644.4,2644.1,3.2078]
[1750089222528,23.122,2644.3,2644.2,2.11074]
[1750089224828,23.122,2644.3,2644.2,0.75614]
[1750089226328,5.20889872,2644.4,2644.0,5.0983]
[1750089226329,4.45278872,2644.4,2644.3,0.75611]
[1750089226529,27.56578872,2644.4,2644.3,0.75611]
[1750089227527,28.32187872,2644.4,2644.3,0.75611]
[1750089228330,31.95120338,2644.4,2643.9,2.55507]
[1750089228531,5.14161466,2644.0,2643.9,1.42073]
[1750089228728,28.25061466,2644.0,2643.9,1.42073]
[1750089230737,0.75623,2643.9,2643.8,0.75624]
[1750089230930,5.14164466,2643.9,2643.8,0.75624]
[1750089236537,4.38541466,2643.9,2643.8,0.75624]
[1750089236842,28.24965466,2643.9,2643.8,0.75624]
[1750089237643,0.75627,2643.8,2643.7,1.37747]
[1750089239843,0.75635,2643.6,2643.4,0.6218]
[1750089240033,4.38541466,2643.5,2643.4,2.02808]
[1750089240347,4.38541466,2643.5,2643.4,3.31828]
[1750089240546,5.14176466,2643.5,2643.4,2.02808]
[1750089241044,5.14176466,2643.5,2643.4,0.75638]
[1750089241437,0.75638,2643.4,2643.3,3.96419]
[1750089241642,23.85738,2643.4,2643.3,3.96419]
[1750089242147,23.85738,2643.4,2643.3,0.75639]
[1750089244034,23.101,2643.4,2643.3,0.75639]
[1750089244241,23.85738,2643.4,2643.3,0.75639]
[1750089244848,0.75641,2643.3,2643.2,2.01323]
[1750089245049,5.14182466,2643.3,2643.2,1.36793]
[1750089245253,5.14182466,2643.3,2643.2,0.6115]
[1750089245449,5.14182466,2643.3,2643.2,1.36794]
[1750089245749,5.14182466,2643.3,2643.2,0.75644]
[1750089246855,5.14182466,2643.3,2643.1,0.75645]
[1750089246856,0.75647,2643.2,2643.1,0.75645]
[1750089247148,23.85947,2643.2,2643.1,0.75645]
[1750089247746,23.103,2643.2,2643.1,0.75645]
[1750089247946,4.38541466,2643.3,2643.2,0.75644]
[1750089248251,27.48241466,2643.3,2643.2,0.75644]
[1750089248839,27.48241466,2643.3,2643.1,1.2236]
[1750089248840,0.75647,2643.2,2643.1,0.75645]
[1750089249044,0.75647,2643.1,2643.0,0.6439]
[1750089249352,28.23688466,2643.1,2643.0,0.6439]
[1750089249553,28.23688466,2643.1,2643.0,1.4004]
[1750089249750,28.23688466,2643.1,2643.0,0.6439]
[1750089250452,28.23688466,2643.1,2643.0,1.4004]
[1750089250648,0.75655,2642.8,2642.7,1.40578]
[1750089250949,23.85455,2642.8,2642.7,1.41178]
[1750089251349,23.098,2642.8,2642.7,1.41178]
[1750089254250,0.00567462,2643.0,2642.7,0.6552]
[1750089254548,23.094,2642.9,2642.8,2.07845]
[1750089254849,23.09367462,2643.0,2642.9,0.75653]
[1750089255051,23.09367462,2643.0,2642.9,1.41533]
[1750089255257,27.47908928,2643.0,2642.9,1.41533]
[1750089256854,28.23558928,2643.0,2642.9,0.75653]
[1750089257050,0.75655,2642.9,2642.7,0.6552]
[1750089257257,5.14196466,2642.8,2642.7,1.41178]
[1750089257454,5.14196466,2642.8,2642.7,0.6552]
[1750089257654,7.59321466,2642.8,2642.5,0.6588]
[1750089257954,5.14202466,2642.6,2642.5,0.6625]
[1750089258160,5.14202466,2642.6,2642.5,0.75664]
[1750089258353,0.75667,2642.5,2642.4,0.75664]
[1750089258556,5.14208466,2642.5,2642.4,0.75664]
[1750089258758,0.00567462,2643.0,2642.9,0.75653]
[1750089258962,23.12767462,2643.0,2642.9,0.75653]
[1750089259160,0.75655,2642.9,2642.8,0.75653]
[1750089259359,5.14196466,2642.9,2642.8,0.75653]
[1750089260961,0.75655,2642.8,2642.7,0.669]
[1750089261355,0.75666,2642.5,2642.4,0.75665]
[1750089261551,28.26607466,2642.5,2642.4,0.75665]
[1750089261961,27.50941466,2642.5,2642.3,0.669]
[1750089262157,28.26607466,2642.5,2642.4,0.75667]
[1750089263061,28.26607466,2642.5,2642.3,1.42569]
[1750089263062,0.75667,2642.4,2642.3,1.42569]
[1750089264056,0.75667,2642.4,2642.3,0.669]
[1750089264663,0.75667,2642.4,2642.3,1.4257]
[1750089265466,4.38541466,2642.4,2642.3,1.4257]
[1750089265666,0.75665,2642.5,2642.4,0.75664]
[1750089265965,23.87565,2642.5,2642.4,0.75664]
[1750089269366,0.75667,2642.4,2642.3,1.42568]
[1750089269564,5.14208466,2642.4,2642.3,1.42568]
[1750089270463,5.14208466,2642.4,2642.3,0.75668]
[1750089272365,5.14208466,2642.4,2642.3,0.7567]
[1750089272570,0.7567,2642.3,2642.2,0.6532]
[1750089272869,0.75681,2641.9,2641.8,0.75683]
[1750089273065,23.85481,2641.9,2641.8,0.75683]
[1750089273264,28.24022466,2641.9,2641.8,0.75683]
[1750089273658,27.48341466,2641.9,2641.8,0.75683]
[1750089273863,28.24022466,2641.9,2641.8,0.75683]
[1750089274065,0.75684,2641.8,2641.7,1.40905]
[1750089274269,0.75684,2641.8,2641.7,0.6522]
[1750089274769,1.89225,2641.6,2641.0,2.25563253]
[1750089274972,0.757,2641.3,2641.2,0.757]
[1750089275270,28.25541466,2641.3,2641.2,0.757]
[1750089275468,0.75701,2641.2,2641.1,1.42522]
[1750089275669,27.49841466,2641.3,2641.1,0.6682]
[1750089275869,0.75701,2641.2,2641.1,1.42522]
[1750089276063,28.25541466,2641.3,2641.2,0.75701]
[1750089276265,0.75701,2641.2,2641.1,1.42522]
[1750089276567,0.75701,2641.2,2641.1,0.6682]
[1750089276770,0.75701,2641.2,2641.1,1.42524]
[1750089277070,9.07778014,2641.2,2641.1,1.42524]
[1750089277273,8.32077014,2641.2,2641.1,1.42524]
[1750089278372,31.42277014,2641.2,2641.1,1.42524]
[1750089281274,31.42077014,2641.2,2641.1,1.42524]
[1750089282071,32.17778014,2641.2,2641.1,1.42524]
[1750089283162,5.10014,2641.5,2641.1,1.42524]
[1750089283163,3.2078,2641.5,2641.1,0.6682]
[1750089283370,23.09767462,2641.6,2641.5,0.75693]
[1750089284076,23.09767462,2641.6,2641.5,1.37063]
[1750089284275,0.00567462,2641.6,2641.5,2.67503]
[1750089285675,0.06737406,2641.9,2641.5,2.67503]
[1750089285676,0.06737406,2641.9,2641.8,0.75684]
[1750089286377,0.06737406,2641.9,2641.8,2.09074]
[1750089294076,0.82418406,2641.9,2641.8,0.75684]
[1750089295983,0.82418406,2641.9,2641.6,1.89791462]
[1750089295984,0.75687,2641.7,2641.6,0.76254462]
[1750089296187,9.07764014,2641.7,2641.6,0.76254462]
[1750089296479,9.07764014,2641.7,2641.6,0.00567462]
[1750089296683,10.38554014,2641.7,2641.6,0.00567462]
[1750089296874,6.46431955,2641.7,2641.6,0.00567462]
[1750089297476,6.46431955,2641.7,2641.6,0.76257462]
[1750089298185,5.15641955,2641.7,2641.6,0.76257462]
[1750089299683,5.15641955,2641.7,2641.6,0.00567462]
[1750089299885,0.75698,2641.4,2641.3,0.75699]
[1750089300091,28.25152955,2641.4,2641.3,0.75699]
[1750089300499,0.75703,2641.2,2641.1,1.42261]
[1750089301391,5.15657955,2641.2,2641.1,1.42261]
[1750089304394,0.75707,2641.1,2641.0,0.75708]
[1750089304695,28.24061955,2641.1,2641.0,0.75708]
[1750089306195,27.48354955,2641.1,2641.0,0.75708]
[1750089307291,4.39954955,2641.1,2641.0,0.75708]
[1750089307487,27.48354955,2641.1,2641.0,0.75708]
[1750089308288,0.06737406,2641.2,2641.1,0.75707]
[1750089308492,0.06737406,2641.2,2641.1,3.96487]
[1750089309090,0.06737406,2641.2,2641.1,0.75707]
[1750089310998,0.06737406,2641.2,2641.1,8.36441955]
[1750089311196,0.06737406,2641.2,2641.1,3.96487]
[1750089314996,3.2078,2641.6,2641.5,0.75696]
[1750089315192,27.49254955,2641.7,2641.6,0.75693]
[1750089315502,4.39954955,2641.7,2641.6,0.75693]
[1750089315800,4.39954955,2641.7,2641.4,0.75696]
[1750089316000,5.15652955,2641.5,2641.4,0.75696]
[1750089316396,6.38892955,2641.5,2641.4,0.75696]
[1750089318803,10.3087146,2641.5,2641.4,0.75696]
[1750089319307,11.23346916,2641.5,2641.4,0.75696]
[1750089319606,11.30084322,2641.5,2641.4,0.75696]
[1750089321004,0.75707,2641.2,2641.1,0.75702]
[1750089321207,9.0764046,2641.2,2641.1,0.75702]
[1750089322006,0.75716,2640.8,2640.7,0.75714]
[1750089322201,32.1814946,2640.8,2640.7,0.75714]
[1750089322401,0.75721,2640.7,2640.6,0.75719]
[1750089322703,3.96501,2640.7,2640.6,0.75719]
[1750089323003,0.75727,2640.5,2640.4,0.75724]
[1750089323504,6.71427,2640.5,2640.4,0.75724]
[1750089323901,6.71427,2640.5,2640.3,0.75728]
[1750089323902,0.7573,2640.4,2640.3,0.75728]
[1750089324103,31.4393346,2640.4,2640.3,0.75728]
[1750089324302,32.1966046,2640.4,2640.3,0.75728]
[1750089324801,32.1966046,2640.4,2640.2,0.75731]
[1750089324802,0.75732,2640.3,2640.2,0.75731]
[1750089325309,0.75731,2640.3,2640.2,0.75731]
[1750089325511,35.4044346,2640.4,2640.3,0.7573]
[1750089325711,35.4044346,2640.4,2640.1,1.39035]
[1750089326106,35.4044346,2640.4,2640.1,0.633]
[1750089326303,34.6471346,2640.4,2640.1,0.633]
[1750089326502,34.6471346,2640.4,2640.3,0.7573]
[1750089326710,35.4044146,2640.4,2640.2,0.75731]
[1750089327008,0.75731,2640.3,2640.1,0.75734]
[1750089327313,0.75732,2640.3,2640.1,0.75736]
[1750089327513,35.9329346,2640.4,2640.2,0.75732]
[1750089327514,13.5702246,2640.4,2640.2,0.75732]
[1750089327808,23.111,2640.3,2640.2,0.75732]
[1750089328812,0.00567462,2640.7,2640.3,0.7573]
[1750089329011,0.00567462,2640.7,2640.6,0.75722]
[1750089329210,9.08220922,2640.7,2640.4,0.6409]
[1750089329411,8.32500922,2640.7,2640.6,0.75722]
[1750089330703,1.89305,2640.6,2639.8,2.25036889]
[1750089330911,8.3193346,2639.9,2639.4,0.6181]
[1750089331107,8.3193346,2639.6,2639.5,0.75753]
[1750089331312,3.2078,2640.1,2639.9,0.75742]
[1750089331507,29.144,2640.0,2639.9,0.75742]
[1750089332014,3.96517,2640.1,2639.8,0.75742]
[1750089332214,29.147,2640.0,2639.8,0.75742]
[1750089332411,38.2237346,2640.0,2639.8,0.75745]
[1750089332609,37.4663346,2640.0,2639.6,3.2078]
[1750089332808,38.2237346,2640.0,2639.8,0.75743]
[1750089333008,38.2237346,2640.0,2639.6,3.2078]
[1750089333009,37.4663346,2640.0,2639.6,3.2078]
[1750089333210,38.2237446,2640.0,2639.6,3.2078]
[1750089333409,0.75742,2639.9,2639.6,3.2078]
[1750089333712,37.4663346,2640.0,2639.6,3.2078]
[1750089333921,38.2237446,2640.0,2639.8,0.75744]
[1750089334115,0.75742,2639.9,2639.8,0.75744]
[1750089334311,37.4663346,2640.0,2639.7,0.75745]
[1750089334514,0.75746,2639.8,2639.6,3.96528]
[1750089334814,39.4126346,2640.0,2639.6,3.2078]
[1750089335117,0.75744,2639.9,2639.7,0.75747]
[1750089335817,0.75744,2639.9,2639.8,0.75745]
[1750089336217,0.75744,2639.9,2639.7,0.75745]
[1750089337115,0.75745,2639.8,2639.7,0.75745]
[1750089337418,9.0767646,2639.9,2639.8,0.75745]
[1750089337620,0.75745,2639.8,2639.7,0.75746]
[1750089338723,9.0767746,2639.9,2639.8,0.75745]
[1750089338926,0.75745,2639.8,2639.7,0.75745]
[1750089339721,9.0767746,2639.9,2639.8,0.75745]
[1750089340221,0.75745,2639.8,2639.7,0.75746]
[1750089340618,0.75747,2639.7,2639.6,3.2078]
[1750089340921,1.89391,2639.4,2638.5,5.10229]
[1750089341116,9.0770246,2639.0,2638.6,1.89448]
[1750089341316,23.201,2638.9,2638.8,0.75771]
[1750089341724,3.2078,2639.1,2638.6,1.3264]
[1750089342021,23.95768,2639.0,2638.9,0.7577]
[1750089342227,0.7577,2638.9,2638.8,0.75771]
[1750089342418,31.5193346,2639.0,2638.6,1.3264]
[1750089342619,9.0771146,2638.7,2638.5,1.3727]
[1750089342917,0.75779,2638.6,2638.5,0.6149]
[1750089343225,0.75785,2638.4,2638.3,1.38968]
[1750089343428,3.96565,2638.4,2638.3,0.6318]
[1750089344130,3.2078,2638.4,2638.2,2.08428]
[1750089344317,0.75788,2638.3,2638.2,1.3264]
[1750089344517,3.96566,2638.4,2638.2,1.3264]
[1750089344717,3.96566,2638.4,2638.2,2.0843]
[1750089345021,27.17266,2638.4,2638.1,1.37281]
[1750089345223,26.4148,2638.4,2638.3,0.75788]
[1750089345930,3.2078,2638.4,2638.3,0.75788]
[1750089346233,26.4168,2638.4,2638.3,0.75788]
[1750089347026,0.6499,2639.0,2638.3,6.89467]
[1750089347027,23.211,2638.9,2638.3,6.89467]
[1750089347219,23.23,2638.9,2638.8,0.75772]
[1750089347414,6.6549,2639.0,2638.5,3.2078]
[1750089347628,23.23,2638.9,2638.8,0.75772]
[1750089347831,0.75776,2638.7,2638.6,0.6545]
[1750089348019,0.7578,2638.6,2638.2,3.8415]
[1750089348226,23.23,2638.5,2638.2,3.8415]
[1750089348531,23.98783,2638.5,2638.2,4.59939]
[1750089348723,8.3193346,2638.3,2638.2,3.8415]
[1750089349119,8.3193346,2638.3,2638.2,4.5994]
[1750089349926,8.3193346,2638.3,2638.2,3.8415]
[1750089350129,8.3193346,2638.3,2638.2,3.2078]
[1750089350329,8.3193346,2638.3,2638.2,3.9657]
[1750089350521,0.6332,2638.4,2638.3,0.75788]
[1750089351324,23.238,2638.6,2638.3,1.8947]
[1750089351531,23.238,2638.6,2638.5,0.75782]
[1750089351924,23.238,2638.6,2638.5,1.39092]
[1750089353632,23.99579,2638.6,2638.5,0.6331]
[1750089353929,23.99579,2638.6,2638.4,0.75782]
[1750089354322,23.238,2638.6,2638.4,0.75784]
[1750089354519,23.238,2638.6,2638.4,0.75783]
[1750089354726,23.238,2638.6,2638.2,3.841]
[1750089355027,8.3193346,2638.4,2638.3,0.75788]
[1750089355424,0.6259,2638.5,2638.4,0.75785]
[1750089356241,1.38372,2638.5,2638.3,0.75786]
[1750089357029,0.6259,2638.5,2638.4,0.75785]
[1750089357334,24.62272,2638.5,2638.4,0.75785]
[1750089358033,24.62272,2638.5,2638.3,0.75786]
[1750089358423,23.8649,2638.5,2638.2,3.841]
[1750089358622,23.8649,2638.5,2638.2,4.5989]
[1750089358623,0.75787,2638.4,2638.2,4.5989]
[1750089358823,0.75787,2638.4,2638.3,0.75788]
[1750089359527,0.75787,2638.4,2638.2,3.841]
[1750089359926,0.6189,2638.8,2638.2,3.841]
[1750089359927,2.25439377,2639.7,2638.7,1.89441]
[1750089360118,8.3193346,2640.6,2639.6,3.2078]
[1750089360119,0.75744,2639.9,2639.6,3.2078]
[1750089360424,0.75754,2639.5,2639.0,9.97145]
[1750089360629,8.3193346,2639.4,2639.1,0.75764]
[1750089361330,0.00568548,2639.5,2639.2,0.75762]
[1750089361531,0.00568548,2639.5,2639.2,0.75761]
[1750089361730,0.00568548,2639.5,2639.1,0.75764]
[1750089362027,1.36288548,2639.5,2639.3,0.75759]
[1750089362421,1.36288548,2639.5,2639.0,3.21348548]
[1750089362622,1.36288548,2639.5,2639.3,0.75758]
[1750089362823,1.36288548,2639.5,2639.4,0.75756]
[1750089362824,0.00568548,2639.5,2639.4,0.75756]
[1750089363739,0.00568548,2639.5,2639.1,1.254]
[1750089364039,0.76322548,2639.5,2639.2,0.75759]
[1750089364333,0.76322548,2639.5,2639.3,0.75759]
[1750089364334,0.00568548,2639.5,2639.3,0.75759]
[1750089365125,0.07305954,2639.5,2639.1,1.254]
[1750089365319,0.83059954,2639.5,2639.1,1.254]
[1750089365524,0.83059954,2639.5,2639.2,0.75762]
[1750089365821,0.07305954,2639.5,2639.3,0.75759]
[1750089366222,0.75756,2639.4,2639.1,1.254]
[1750089366434,0.07305954,2639.5,2639.0,3.21348548]
[1750089366435,8.39239414,2639.5,2639.0,3.21348548]
[1750089366628,1.3276,2639.3,2639.0,3.21348548]
[1750089366831,2.08521,2639.3,2639.1,0.75763]
[1750089367826,1.3276,2639.3,2639.2,0.75762]
[1750089368032,0.91564949,2639.3,2639.2,0.75762]
[1750089368532,1.67323949,2639.3,2639.1,0.75763]
[1750089368731,0.75759,2639.3,2639.1,0.75763]
[1750089369534,0.75765,2639.1,2639.0,0.00568548]
[1750089370433,1.67455625,2639.1,2639.0,0.00568548]
[1750089370738,1.67455625,2639.1,2639.0,0.76336548]
[1750089371129,1.67455625,2639.1,2639.0,0.00568548]
[1750089371829,9.99389085,2639.1,2639.0,5.48e-06]
[1750089372036,28.21414545,2639.1,2638.2,2.25036889]
[1750089372231,28.21414545,2639.1,2637.7,0.653]
[1750089372232,11.5271346,2638.4,2637.7,2.25036889]
[1750089372432,8.3193346,2638.0,2637.5,3.2078]
[1750089372639,30.73690625,2637.9,2637.2,3.8608]
[1750089372840,8.3193346,2637.6,2637.2,3.8608]
[1750089373040,29.817,2637.5,2637.2,3.8608]
[1750089373236,0.75828,2636.9,2636.8,3.2078]
[1750089373441,0.75828,2636.9,2636.5,2.25036889]
[1750089373442,0.75835,2636.7,2636.5,1.242]
[1750089373738,33.0258,2637.0,2636.3,0.653]
[1750089373739,6.182,2636.6,2636.3,0.653]
[1750089374042,6.182,2636.6,2636.3,1.895]
[1750089374043,29.849,2636.6,2636.3,1.895]
[1750089374248,38.1683346,2636.6,2636.3,1.895]
[1750089374539,0.75841,2636.5,2636.3,1.895]
[1750089374843,29.849,2636.6,2636.3,2.65344]
[1750089375037,29.849,2636.6,2636.4,0.75842]
[1750089375236,6.183,2636.6,2636.0,3.2078]
[1750089375447,6.183,2636.6,2636.5,0.7584]
[1750089375633,6.183,2636.7,2636.3,3.2078]
[1750089375830,6.183,2636.7,2636.4,1.2337]
[1750089376142,15.47315693,2636.7,2636.0,3.2078]
[1750089376336,9.29015693,2636.4,2636.0,3.2078]
[1750089376636,29.839,2636.3,2636.0,3.96632]
[1750089377142,9.29015693,2636.4,2636.0,3.2078]
[1750089377337,29.86,2636.3,2636.2,0.75847]
[1750089377732,29.86,2636.3,2636.1,1.342]
[1750089377733,0.00568548,2636.5,2636.3,0.75844]
[1750089377934,29.854,2636.4,2636.1,2.1005]
[1750089378228,29.854,2636.4,2636.1,1.342]
[1750089378437,29.854,2636.4,2636.3,0.75846]
[1750089378630,29.854,2636.4,2636.2,0.75847]
[1750089378835,0.7585,2636.2,2636.0,3.2078]
[1750089379031,9.29015693,2636.3,2636.0,3.2078]
[1750089379236,23.66,2636.2,2636.0,3.2078]
[1750089379636,23.66,2636.2,2636.1,0.75851]
[1750089380039,23.66,2636.2,2636.0,3.96632]
[1750089380340,23.66,2636.2,2636.0,3.2078]
[1750089380642,23.66,2636.2,2636.1,0.75851]
[1750089381340,23.66,2636.2,2636.0,3.96632]
[1750089381645,24.41851,2636.2,2636.0,3.96633]
[1750089381942,24.41849,2636.2,2636.0,3.96633]
[1750089382335,24.41849,2636.2,2636.0,3.96634]
[1750089382535,24.41849,2636.2,2636.0,3.96633]
[1750089382735,23.66,2636.2,2636.0,3.96633]
[1750089382941,23.66,2636.2,2636.1,0.75851]
[1750089383139,30.60448,2636.2,2636.0,3.96632]
[1750089383341,30.60448,2636.2,2636.1,0.75851]
[1750089383543,29.846,2636.2,2636.1,0.75851]
[1750089384042,29.846,2636.2,2636.0,3.96633]
[1750089384237,9.92344241,2636.5,2636.0,8.2078]
[1750089384238,0.00568548,2636.5,2636.0,8.2078]
[1750089384435,0.7583,2636.9,2636.5,0.75837]
[1750089384634,15.47715693,2637.2,2636.6,1.3009]
[1750089384833,0.75824,2637.1,2636.6,1.3009]
[1750089385035,16.23535693,2637.2,2636.6,3.19682]
[1750089385242,1.3353,2637.1,2636.6,1.3009]
[1750089385434,2.09922548,2637.1,2636.8,0.75829]
[1750089385631,0.75826,2637.0,2636.8,0.7583]
[1750089385943,23.727,2636.9,2636.8,0.7583]
[1750089387140,24.48528,2636.9,2636.8,0.7583]
[1750089387344,0.75831,2636.8,2636.7,0.75832]
[1750089387545,23.727,2636.9,2636.6,1.3009]
[1750089387840,6.187,2636.8,2636.4,3.2078]
[1750089388139,6.187,2636.8,2636.5,0.75839]
[1750089388140,10.04853693,2636.6,2636.5,0.75839]
[1750089388339,0.75843,2636.4,2636.3,0.75844]
[1750089388542,0.75848,2636.2,2636.1,0.75851]
[1750089388839,23.715,2636.2,2636.1,0.75851]
[1750089389037,6.25437406,2636.4,2636.0,0.00568548]
[1750089389038,0.06737406,2636.4,2636.3,0.75846]
[1750089389237,29.97537406,2636.4,2636.3,0.75846]
[1750089389545,29.908,2636.4,2636.3,0.75846]
[1750089389740,3.8257,2636.8,2636.2,3.2078]
[1750089389937,29.914,2636.7,2636.6,0.75837]
[1750089390135,23.727,2636.7,2636.3,2.0086]
[1750089390342,0.75838,2636.6,2636.5,0.75838]
[1750089390545,29.914,2636.7,2636.6,0.75837]
[1750089391043,29.914,2636.7,2636.4,0.75841]
[1750089391242,9.29015693,2636.5,2636.3,0.6545]
[1750089391440,0.75848,2636.3,2636.0,0.00568548]
[1750089391749,6.94545,2636.3,2636.2,0.75848]
[1750089391941,6.187,2636.3,2636.2,0.75848]
[1750089392547,6.187,2636.3,2636.2,3.96628]
[1750089392852,6.187,2636.3,2636.2,4.03365406]
[1750089393046,7.03848548,2637.1,2636.5,1.89599]
[1750089393047,5.14288548,2637.1,2636.5,1.89599]
[1750089393252,0.7583,2636.9,2636.8,0.7583]
[1750089393644,24.4793,2636.9,2636.8,0.7583]
[1750089394038,0.7583,2636.9,2636.8,0.7583]
[1750089394247,29.901,2636.9,2636.8,0.7583]
[1750089394550,0.00568548,2637.1,2637.0,0.75825]
[1750089395441,0.00568548,2637.1,2637.0,1.42415]
[1750089396044,0.00568548,2637.1,2637.0,0.75825]
[1750089396253,23.76068548,2637.1,2637.0,0.75825]
[1750089396455,24.51890548,2637.1,2637.0,0.75825]
[1750089396844,23.76068548,2637.1,2636.8,3.2078]
[1750089397143,0.75827,2637.0,2636.9,0.75827]
[1750089397343,24.51892548,2637.1,2637.0,0.75825]
[1750089397543,0.75826,2637.0,2636.8,3.2078]
[1750089397755,0.75835,2636.7,2636.6,0.75835]
[1750089398046,30.69935,2636.7,2636.6,0.75836]
[1750089398753,30.69935,2636.7,2636.4,0.6315]
[1750089398754,0.75839,2636.5,2636.4,1.3899]
[1750089398952,0.75839,2636.5,2636.4,0.7584]
[1750089399355,0.75843,2636.4,2636.3,0.75843]
[1750089399547,23.747,2636.4,2636.2,3.2078]
[1750089399748,23.747,2636.4,2636.3,0.75845]
[1750089400444,10.04853693,2636.6,2636.5,0.75839]
[1750089400753,0.7584,2636.5,2636.4,0.7584]
[1750089400953,0.75836,2636.7,2636.3,1.3189]
[1750089401148,23.733,2636.5,2636.4,0.75842]
[1750089401943,12.56533099,2636.9,2636.8,0.7583]
[1750089401944,9.60217406,2636.9,2636.8,0.7583]
[1750089402147,31.79775437,2636.9,2636.8,0.7583]
[1750089402347,24.71348437,2636.9,2636.8,3.9661]
[1750089402546,23.79737406,2636.9,2636.8,3.9661]
[1750089402860,0.75825,2637.0,2636.9,0.75827]
[1750089403149,0.7583,2636.8,2636.7,0.7583]
[1750089403347,0.75836,2636.7,2636.6,0.75834]
[1750089404656,0.75836,2636.7,2636.5,0.75836]
[1750089404854,24.49735,2636.6,2636.5,0.75836]
[1750089405159,0.75842,2636.4,2636.3,0.75842]
[1750089405458,0.75841,2636.5,2636.4,0.75841]
[1750089405761,30.066,2636.6,2636.5,0.75837]
[1750089405762,7.08537,2636.6,2636.5,0.75837]
[1750089405959,30.81637,2636.6,2636.5,0.75837]
[1750089406155,0.7584,2636.5,2636.4,0.75839]
[1750089406553,30.81636,2636.6,2636.5,0.75838]
[1750089406859,23.729,2636.6,2636.3,1.2948]
[1750089407056,0.7584,2636.4,2636.3,0.75841]
[1750089408459,0.75837,2636.5,2636.4,0.75835]
[1750089408954,0.7584,2636.4,2636.3,0.75839]
[1750089409256,0.7584,2636.4,2636.3,2.02109]
[1750089410257,0.75841,2636.3,2636.2,3.2078]
[1750089410459,0.75844,2636.2,2636.1,0.6511]
[1750089410757,0.75846,2636.1,2636.0,0.00568548]
[1750089411560,9.1073823,2636.1,2636.0,0.00568548]
[1750089411759,10.02704416,2636.1,2636.0,0.00568548]
[1750089413356,9.1073823,2636.1,2636.0,0.00568548]
[1750089413562,10.02673075,2636.1,2636.0,0.00568548]
[1750089413763,40.05073075,2636.1,2636.0,0.00568548]
[1750089414164,0.75858,2635.7,2635.6,3.2078]
[1750089414466,33.72651976,2635.7,2635.6,3.96641]
[1750089414765,8.3489223,2636.0,2635.9,0.75852]
[1750089415062,30.79049,2636.0,2635.9,0.75852]
[1750089416563,0.75855,2635.9,2635.8,0.75854]
[1750089417364,0.75855,2635.8,2635.7,1.98506]
[1750089417560,0.75858,2635.7,2635.6,3.2078]
[1750089417764,0.75858,2635.7,2635.6,3.96641]
[1750089418065,32.0439223,2636.0,2635.7,0.75857]
[1750089418066,0.75854,2635.9,2635.7,0.75857]
[1750089418761,0.75854,2635.9,2635.8,0.75855]
[1750089418962,32.0439223,2636.0,2635.6,3.2078]
[1750089419261,32.8024223,2636.0,2635.9,0.75852]
[1750089419463,32.8024223,2636.0,2635.6,4.4386]
[1750089419662,32.8024223,2636.0,2635.9,0.75852]
[1750089419862,23.695,2636.0,2635.9,0.75852]
[1750089420058,24.45349,2636.0,2635.9,0.75852]